Workbook

Sheet Лист1
C1: Информация
C2: о сдаче нормативов Всероссийского физкультурно-спортивного комплекса Готов к труду и обороне (ГТО)
C3: обучающимися общеобразовательных организаций в _________________________муниципальном районе
A4: Количество общеобразовательных организаций в районе | B4: Количество общеобразовательных организаций в районе, приступивших к сдаче нормативов | C4: Количество обучающихся основной группы по физической культуре, допущенных к сдаче нормативов | D4: Количество обучающихся основной группы по физической культуре, приступивших к сдаче нормативов | E4: Количество обучающихся основной группы по физической культуре, справившихся с выполнением нормативов в полном объеме | H4: Количество обучающихся основной группы по физической культуре, справившихся с выполнением нормативов не в полном объеме | I4: Количество обучающихся основной группы по физической культуре, не справившихся с выполнением нормативов | J4: Количество обучающихся основной группы по физической культуре, не справившихся с выполнением нормативов
E5: Бронзовый | F5: Серебряный | G5: Золотой
E6: Бронзовый | F6: Серебряный | G6: Золотой
A7: Большекайбицкая сош | B7: 1 | C7: 213 | D7: 213 | E7: 46 | F7: 30 | G7: 17 | I7: 120 | J7: 120
A8: Чутеевская сош | B8: 1 | C8: 124 | D8: 124 | E8: 18 | F8: 25 | G8: 12 | H8: 67 | I8: 2 | J8: 2
A9: Старотябердинская сош | B9: 1 | C9: 95 | D9: 95 | E9: 15 | F9: 13 | G9: 5 | H9: 62 | I9: 0 | J9: 0
A10: Молькеевская ош | B10: 1 | C10: 63 | D10: 63 | E10: 10 | F10: 15 | G10: 5 | H10: 33 | I10: 8 | J10: 0
A11: Хозесановская сош | B11: 1 | C11: 76 | D11: 76 | E11: 35 | F11: 29 | G11: 12
A12: Большеподберезинская сош | C12: 104 | D12: 104 | E12: 27 | F12: 25 | G12: 27 | H12: 15 | I12: 10 | J12: 10
A13: Надеждинская сош | C13: 20 | D13: 20 | E13: 8 | F13: 7 | G13: 5
A14: Ульянковская ош | B14: 1 | C14: 22 | D14: 22 | E14: 8 | F14: 3 | H14: 11 | J14: 0
A15: Старочечкабская ош | C15: 25 | D15: 25 | E15: 8 | F15: 12 | G15: 5
A16: Берлибашская ош | B16: 1 | C16: 40 | D16: 40 | E16: 15 | F16: 15 | G16: 0 | H16: 10 | I16: 0 | J16: 0
A17: Кушманская ош | C17: 62 | D17: 62 | E17: 39 | F17: 15 | G17: 5 | H17: 3
A18: Муралинская ош | B18: 1 | C18: 30 | D18: 30 | E18: 10 | F18: 12 | G18: 5 | H18: 3
A19: Федоровская сош | B19: 1 | C19: 145 | D19: 145 | E19: 47 | F19: 44 | G19: 24 | H19: 30 | J19: 0
A20: Бурундуковская ош | C20: 35 | D20: 35 | E20: 8 | F20: 13 | G20: 14 | H20: 0 | I20: 0
A21: Маломеминская ош | C21: 53 | D21: 53 | E21: 19 | F21: 8 | G21: 9 | H21: 9 | I21: 8 | J21: 8
A22: Большерусаковская сош | C22: 51 | D22: 51 | E22: 22 | F22: 16 | G22: 5 | H22: 0 | I22: 8 | J22: 8
A23: Кулангинская ош | B23: 1 | C23: 55 | D23: 55 | E23: 20 | F23: 15 | G23: 5 | H23: 15 | J23: 0
C24: =SUM(C7:C23) -> 1213 | D24: 1213 | E24: 355 | F24: 297 | G24: 155 | H24: 258 | I24: 156 | J24: 148

Sheet Чел. бег
D1: Информация о сдаче нормативов осенней (зимней, весенней) сессии в _________муниципальном районе
F2: Челночный бег
A3: Наименование норматива | B3: Количество обучающихся основной группы по физической культуре, приступивших к сдаче норматива | C3: Количество обучающихся основной группы по физической культуре, справившихся с выполнением нормативов в полном объеме | F3: Количество обучающихся основной группы по физической культуре, справившихся с выполнением нормативов частично | G3: Количество обучающихся основной группы по физической культуре, не справившихся с выполнением нормативов
C4: Бронзовый | D4: Серебряный | E4: Золотой
C5: уровень | D5: уровень | E5: уровень
A6: Большекайбицкая сош | B6: 48 | C6: 11 | D6: 10 | E6: 2 | G6: 25
A7: Чутеевская сош | B7: 9 | C7: 1 | D7: 5 | E7: 2 | G7: 1
A8: Старотябердинская сош | B8: 19 | C8: 5 | D8: 8 | E8: 5 | G8: 1
A9: Молькеевская ош | B9: 9 | C9: 0 | D9: 3 | E9: 4 | G9: 2
A10: Хозесановская сош | B10: 15 | C10: 2 | D10: 1 | E10: 1 | G10: 11
A11: Большеподберезинская сош | B11: 16 | C11: 7 | D11: 3 | E11: 2 | F11: 0 | G11: 4
A12: Надеждинская сош | B12: 20 | C12: 5 | D12: 8 | E12: 7
A13: Ульянковская ош | B13: 7 | C13: 3 | D13: 3 | F13: 0 | G13: 1
A14: Старочечкабская ош | B14: 9 | C14: 4 | D14: 2 | E14: 2 | G14: 1
A15: Берлибашская ош | B15: 8 | D15: 5 | E15: 3 | F15: 0 | G15: 0
A16: Кушманская ош | B16: 14 | C16: 8 | D16: 6 | E16: 0
A17: Муралинская ош | B17: 3 | C17: 1 | D17: 1 | E17: 1 | F17: 0
A18: Федоровская сош | B18: 7 | C18: 3 | D18: 1 | E18: 1 | G18: 2
A19: Бурундуковская ош | B19: 9 | C19: 2 | D19: 4 | E19: 3
A20: Маломеминская ош | B20: 8 | C20: 1 | E20: 2 | G20: 5
A21: Большерусаковская сош | B21: 51 | C21: 25 | D21: 17 | E21: 3 | G21: 6
A22: Кулангинская ош | B22: 16 | C22: 5 | D22: 5 | E22: 5 | F22: 0 | G22: 1
B23: =SUM(B6:B22) -> 268 | C23: 83 | D23: 82 | E23: 43 | F23: 0 | G23: 60

Sheet Бег на 30м
D1: Информация о сдаче нормативов осенней (зимней, весенней) сессии в _________муниципальном районе
F2: Бег на 30 м
A3: Наименование норматива | B3: Количество обучающихся основной группы по физической культуре, приступивших к сдаче норматива | C3: Количество обучающихся основной группы по физической культуре, справившихся с выполнением нормативов в полном объеме | F3: Количество обучающихся основной группы по физической культуре, справившихся с выполнением нормативов частично | G3: Количество обучающихся основной группы по физической культуре, не справившихся с выполнением нормативов частично
C4: Бронзовый | D4: Серебряный | E4: Золотой
C5: уровень | D5: уровень | E5: уровень
A6: Большекайбицкая сош | B6: 48 | G6: 48
A7: Чутеевская сош | B7: 9 | C7: 1 | D7: 4 | E7: 3 | G7: 1
A8: Старотябердинская сош | B8: 19 | C8: 5 | D8: 9 | E8: 4 | G8: 1
A9: Молькеевская ош | B9: 9 | C9: 0 | D9: 7 | E9: 0 | G9: 2
A10: Хозесановская сош | B10: 15 | C10: 3 | D10: 3 | E10: 1 | G10: 8
A11: Большеподберезинская сош | B11: 16 | C11: 8 | D11: 4 | E11: 2 | F11: 0 | G11: 2
A12: Надеждинская сош | B12: 20 | C12: 6 | D12: 9 | E12: 5
A13: Ульянковская ош | B13: 7 | C13: 3 | D13: 1 | E13: 1 | G13: 2
A14: Старочечкабская ош | B14: 9 | C14: 3 | D14: 4 | E14: 1 | G14: 1
A15: Берлибашская ош | B15: 8 | D15: 5 | E15: 3 | F15: 0 | G15: 0
A16: Кушманская ош | B16: 14 | C16: 5 | D16: 8 | E16: 1
A17: Муралинская ош | B17: 3 | C17: 1 | D17: 1 | E17: 1 | F17: 0
A18: Федоровская сош | B18: 7 | C18: 2 | D18: 2 | E18: 1 | G18: 2
A19: Бурундуковская ош | B19: 9 | C19: 2 | D19: 4 | E19: 3
A20: Маломеминская ош | B20: 8 | C20: 2 | D20: 3 | E20: 3
A21: Большерусаковская сош | B21: 51 | C21: 18 | D21: 19 | E21: 10 | G21: 4
A22: Кулангинская ош | B22: 16 | C22: 5 | D22: 6 | E22: 4 | G22: 1
B23: =SUM(B6:B22) -> 268 | C23: 64 | D23: 89 | E23: 43 | F23: 0 | G23: 72

Sheet Бег на 60 м
D1: Информация о сдаче нормативов осенней (зимней, весенней) сессии в _________муниципальном районе
G2: Бег на 60 м
A3: Наименование норматива | B3: Количество обучающихся основной группы по физической культуре, приступивших к сдаче норматива | C3: Количество обучающихся основной группы по физической культуре, справившихся с выполнением нормативов в полном объеме | F3: Количество обучающихся основной группы по физической культуре, справившихся с выполнением нормативов частично | G3: Количество обучающихся основной группы по физической культуре, не справившихся с выполнением нормативов частично
C4: Бронзовый | D4: Серебряный | E4: Золотой
C5: уровень | D5: уровень | E5: уровень
A6: Большекайбицкая сош | B6: 111 | C6: 25 | D6: 20 | E6: 12 | G6: 54
A7: Чутеевская сош | B7: 97 | C7: 12 | D7: 40 | E7: 45
A8: Старотябердинская сош | B8: 46 | C8: 18 | D8: 12 | E8: 12 | G8: 4
A9: Молькеевская ош | B9: 54 | C9: 12 | D9: 25 | E9: 6 | G9: 11
A10: Хозесановская сош | B10: 35 | C10: 7 | D10: 3 | E10: 2 | G10: 23
A11: Большеподберезинская сош | B11: 49 | C11: 16 | D11: 9 | E11: 10 | F11: 0 | G11: 14
A12: Надеждинская сош | B12: 20 | C12: 6 | D12: 9 | E12: 5
A13: Ульянковская ош | B13: 15 | C13: 6 | D13: 1 | E13: 0 | G13: 8
A14: Старочечкабская ош | B14: 52 | C14: 17 | D14: 23 | E14: 6 | G14: 6
A15: Берлибашская ош | B15: 32 | C15: 9 | D15: 11 | E15: 7 | G15: 5
A16: Кушманская ош | B16: 48 | C16: 28 | D16: 15 | E16: 5
A17: Муралинская ош | B17: 23 | C17: 7 | D17: 3 | E17: 5 | F17: 0 | G17: 8
A18: Федоровская сош | B18: 88 | C18: 29 | D18: 15 | E18: 11 | G18: 33
A19: Бурундуковская ош | B19: 24 | C19: 5 | D19: 6 | E19: 13
A20: Маломеминская ош | B20: 45 | C20: 17 | D20: 9 | E20: 7 | G20: 12
A21: Большерусаковская сош | B21: 51 | C21: 18 | D21: 20 | E21: 9 | G21: 4
A22: Кулангинская ош | B22: 39 | C22: 10 | D22: 15 | E22: 9 | G22: 5
B23: =SUM(B6:B22) -> 829 | C23: 242 | D23: 236 | E23: 164 | F23: 0 | G23: 187

Sheet Бег на 100м
D1: Информация о сдаче нормативов осенней (зимней, весенней) сессии в _________муниципальном районе
G2: Бег на 100 м
A3: Наименование норматива | B3: Количество обучающихся основной группы по физической культуре, приступивших к сдаче норматива | C3: Количество обучающихся основной группы по физической культуре, справившихся с выполнением нормативов в полном объеме | F3: Количество обучающихся основной группы по физической культуре, справившихся с выполнением нормативов частично | G3: Количество обучающихся основной группы по физической культуре, не справившихся с выполнением нормативов частично
C4: Бронзовый | D4: Серебряный | E4: Золотой
C5: уровень | D5: уровень | E5: уровень
A6: Большекайбицкая сош | B6: 33 | C6: 2 | D6: 12 | E6: 1 | G6: 18
A7: Чутеевская сош | B7: 18 | C7: 5 | D7: 5 | E7: 6 | G7: 2
A8: Старотябердинская сош | B8: 30 | C8: 11 | D8: 9 | E8: 8 | G8: 2
A9: Молькеевская ош | B9: 0 | C9: 0 | D9: 0 | E9: 0 | F9: 0 | G9: 0
A10: Хозесановская сош | B10: 12 | C10: 4 | D10: 3 | E10: 1 | G10: 4
A11: Большеподберезинская сош | B11: 21 | C11: 7 | D11: 5 | E11: 6 | F11: 0 | G11: 3
A12: Надеждинская сош | B12: 13 | C12: 3 | D12: 5 | E12: 5
A13: Ульянковская ош | B13: 0 | C13: 0 | D13: 0 | E13: 0 | F13: 0 | G13: 0
A14: Старочечкабская ош
A15: Берлибашская ош
A16: Кушманская ош
A17: Муралинская ош
A18: Федоровская сош | B18: 45 | C18: 17 | D18: 8 | E18: 9 | G18: 11
A19: Бурундуковская ош
A20: Маломеминская ош
A21: Большерусаковская сош | B21: 39 | C21: 13 | D21: 20 | E21: 4 | G21: 2
A22: Кулангинская ош
B23: =SUM(B6:B21) -> 211 | C23: 62 | D23: 67 | E23: 40 | F23: 0 | G23: 42

Sheet Бег на 1 км
D1: Информация о сдаче нормативов осенней (зимней, весенней) сессии в _________муниципальном районе
G2: Бег на 1 км
A3: Наименование норматива | B3: Количество обучающихся основной группы по физической культуре, приступивших к сдаче норматива | C3: Количество обучающихся основной группы по физической культуре, справившихся с выполнением нормативов в полном объеме | F3: Количество обучающихся основной группы по физической культуре, справившихся с выполнением нормативов частично | G3: Количество обучающихся основной группы по физической культуре, не справившихся с выполнением нормативов частично
C4: Бронзовый | D4: Серебряный | E4: Золотой
C5: уровень | D5: уровень | E5: уровень
A6: Большекайбицкая сош | B6: 37 | C6: 5 | D6: 5 | E6: 25 | G6: 2
A7: Чутеевская сош | B7: 19 | C7: 9 | D7: 4 | E7: 6
A8: Старотябердинская сош | B8: 10 | C8: 3 | D8: 3 | E8: 4
A9: Молькеевская ош | B9: 9 | C9: 1 | D9: 2 | E9: 5 | G9: 1
A10: Хозесановская сош | B10: 10 | C10: 1 | D10: 1 | E10: 1 | G10: 7
A11: Большеподберезинская сош | B11: 18 | C11: 9 | D11: 5 | E11: 3 | F11: 0 | G11: 1
A12: Надеждинская сош | B12: 20 | C12: 2 | D12: 7 | E12: 11
A13: Ульянковская ош | B13: 14 | C13: 8 | D13: 3 | G13: 3
A14: Старочечкабская ош | B14: 16 | C14: 9 | D14: 3 | E14: 2 | G14: 2
A15: Берлибашская ош | B15: 8 | C15: 5 | D15: 3 | F15: 0 | G15: 0
A16: Кушманская ош | B16: 14 | C16: 12 | D16: 1 | E16: 1
A17: Муралинская ош | B17: 7 | C17: 1 | D17: 1 | E17: 3 | F17: 0 | G17: 2
A18: Федоровская сош | B18: 17 | C18: 4 | D18: 2 | E18: 5 | G18: 6
A19: Бурундуковская ош | B19: 8 | E19: 8
A20: Маломеминская ош | B20: 11 | C20: 4 | E20: 4 | G20: 3
A21: Большерусаковская сош | B21: 51 | C21: 16 | D21: 20 | E21: 10 | G21: 5
A22: Кулангинская ош | B22: 15 | C22: 7 | D22: 5 | E22: 2 | G22: 1
B23: =SUM(B6:B22) -> 284 | C23: 96 | D23: 65 | E23: 90 | F23: 0 | G23: 33

Sheet Бег на 1,5 км
D1: Информация о сдаче нормативов осенней (зимней, весенней) сессии в _________муниципальном районе
G2: Бег на 1,5 км
A3: Наименование норматива | B3: Количество обучающихся основной группы по физической культуре, приступивших к сдаче норматива | C3: Количество обучающихся основной группы по физической культуре, справившихся с выполнением нормативов в полном объеме | F3: Количество обучающихся основной группы по физической культуре, справившихся с выполнением нормативов частично | G3: Количество обучающихся основной группы по физической культуре, не справившихся с выполнением нормативов частично
C4: Бронзовый | D4: Серебряный | E4: Золотой
C5: уровень | D5: уровень | E5: уровень
A6: Большекайбицкая сош | B6: 46 | C6: 31 | D6: 6 | E6: 3 | G6: 6
A7: Чутеевская сош | B7: 27 | C7: 11 | D7: 7 | E7: 8 | G7: 1
A8: Старотябердинская сош | B8: 13 | C8: 2 | D8: 5 | E8: 6
A9: Молькеевская ош | B9: 20 | C9: 8 | D9: 7 | E9: 5
A10: Хозесановская сош | B10: 11 | C10: 1 | D10: 1 | E10: 1 | G10: 8
A11: Большеподберезинская сош | B11: 16 | C11: 7 | D11: 5 | E11: 3 | F11: 0 | G11: 1
A12: Надеждинская сош | B12: 13 | C12: 3 | D12: 5 | E12: 5
A13: Ульянковская ош | B13: 5 | C13: 4 | D13: 1
A14: Старочечкабская ош | B14: 11 | C14: 4 | D14: 2 | E14: 2 | G14: 3
A15: Берлибашская ош | B15: 7 | C15: 2 | D15: 2 | G15: 3
A16: Кушманская ош | B16: 18 | C16: 8 | D16: 8 | E16: 1 | G16: 1
A17: Муралинская ош | B17: 6 | C17: 1 | D17: 2 | E17: 2 | F17: 0 | G17: 1
A18: Федоровская сош | B18: 23 | C18: 5 | D18: 4 | E18: 6 | G18: 8
A19: Бурундуковская ош | B19: 8 | C19: 2 | D19: 2 | E19: 4
A20: Маломеминская ош | B20: 11 | C20: 3 | D20: 1 | E20: 5 | G20: 2
A21: Большерусаковская сош | B21: 51 | C21: 23 | D21: 12 | E21: 4 | F21: 0 | G21: 12
A22: Кулангинская ош | B22: 10 | C22: 5 | D22: 3 | E22: 2 | G22: 0
B23: =SUM(B6:B22) -> 296 | C23: 120 | D23: 73 | E23: 57 | F23: 0 | G23: 46

Sheet Бег на 2 км
D1: Информация о сдаче нормативов осенней (зимней, весенней) сессии в _________муниципальном районе
G2: Бег на 2 км
A3: Наименование норматива | B3: Количество обучающихся основной группы по физической культуре, приступивших к сдаче норматива | C3: Количество обучающихся основной группы по физической культуре, справившихся с выполнением нормативов в полном объеме | F3: Количество обучающихся основной группы по физической культуре, справившихся с выполнением нормативов частично | G3: Количество обучающихся основной группы по физической культуре, не справившихся с выполнением нормативов частично
C4: Бронзовый | D4: Серебряный | E4: Золотой
C5: уровень | D5: уровень | E5: уровень
A6: Большекайбицкая сош | B6: 33 | C6: 18 | D6: 3 | E6: 2 | G6: 10
A7: Чутеевская сош | B7: 96 | C7: 30 | D7: 27 | E7: 30 | G7: 9
A8: Старотябердинская сош | B8: 66 | C8: 35 | D8: 17 | E8: 14
A9: Молькеевская ош | B9: 22 | C9: 5 | D9: 10 | E9: 6 | G9: 1
A10: Хозесановская сош | B10: 30 | C10: 3 | D10: 2 | E10: 1 | G10: 24
A11: Большеподберезинская сош | B11: 69 | C11: 25 | D11: 20 | E11: 20 | F11: 0 | G11: 4
A12: Надеждинская сош | B12: 13 | C12: 3 | D12: 5 | E12: 5
A13: Ульянковская ош | B13: 8 | C13: 4 | D13: 3 | G13: 1
A14: Старочечкабская ош | B14: 20 | C14: 11 | D14: 7 | E14: 1 | G14: 1
A15: Берлибашская ош
A16: Кушманская ош | B16: 13 | C16: 6 | D16: 5 | E16: 1 | G16: 1
A17: Муралинская ош | B17: 10 | C17: 3 | D17: 2 | E17: 2 | F17: 0 | G17: 3
A18: Федоровская сош | B18: 48 | C18: 14 | D18: 9 | E18: 12 | G18: 13
A19: Бурундуковская ош | B19: 8 | C19: 1 | D19: 2 | E19: 5
A20: Маломеминская ош | B20: 23 | C20: 7 | D20: 3 | E20: 6 | G20: 7
A21: Большерусаковская сош | B21: 51 | C21: 23 | D21: 12 | E21: 4 | F21: 0 | G21: 12
A22: Кулангинская ош | B22: 14 | C22: 4 | D22: 4 | E22: 5 | G22: 1
B23: =SUM(B6:B22) -> 524 | C23: 192 | D23: 131 | E23: 114 | F23: 0 | G23: 87

Sheet Бег на 3 км
D1: Информация о сдаче нормативов осенней (зимней, весенней) сессии в _________муниципальном районе
G2: Бег на 3 км
A3: Наименование норматива | B3: Количество обучающихся основной группы по физической культуре, приступивших к сдаче норматива | C3: Количество обучающихся основной группы по физической культуре, справившихся с выполнением нормативов в полном объеме | F3: Количество обучающихся основной группы по физической культуре, справившихся с выполнением нормативов частично | G3: Количество обучающихся основной группы по физической культуре, не справившихся с выполнением нормативов частично
C4: Бронзовый | D4: Серебряный | E4: Золотой
C5: уровень | D5: уровень | E5: уровень
A6: Большекайбицкая сош
A7: Чутеевская сош | B7: 18 | C7: 5 | D7: 4 | E7: 5 | G7: 4
A8: Старотябердинская сош | B8: 30 | C8: 13 | D8: 11 | E8: 6
A9: Молькеевская ош
A10: Хозесановская сош | B10: 30 | C10: 6 | D10: 2 | E10: 1 | G10: 21
A11: Большеподберезинская сош | B11: 10 | C11: 5 | D11: 3 | E11: 1 | F11: 0 | G11: 1
A12: Надеждинская сош
A13: Ульянковская ош | B13: 0 | C13: 0 | D13: 0 | E13: 0 | F13: 0 | G13: 0
A14: Старочечкабская ош
A15: Берлибашская ош | B15: 17 | D15: 13 | G15: 4
A16: Кушманская ош
A17: Муралинская ош
A18: Федоровская сош | B18: 45 | C18: 12 | D18: 5 | E18: 9 | G18: 19
A19: Бурундуковская ош
A20: Маломеминская ош
A21: Большерусаковская сош | B21: 39 | C21: 20 | D21: 12 | E21: 4 | F21: 0 | G21: 3
A22: Кулангинская ош
B23: =SUM(B7:B21) -> 189 | C23: 61 | D23: 50 | E23: 26 | F23: 0 | G23: 52

Sheet Смешанное перед
D1: Информация о сдаче нормативов осенней (зимней, весенней) сессии в _________муниципальном районе
G2: Смешанное передвижение
A3: Наименование норматива | B3: Количество обучающихся основной группы по физической культуре, приступивших к сдаче норматива | C3: Количество обучающихся основной группы по физической культуре, справившихся с выполнением нормативов в полном объеме | F3: Количество обучающихся основной группы по физической культуре, справившихся с выполнением нормативов частично | G3: Количество обучающихся основной группы по физической культуре, не справившихся с выполнением нормативов частично
C4: Бронзовый | D4: Серебряный | E4: Золотой
C5: уровень | D5: уровень | E5: уровень
A6: Большекайбицкая сош
A7: Чутеевская сош | B7: 9 | D7: 2 | E7: 7
A8: Старотябердинская сош | B8: 19 | D8: 1 | E8: 18
A9: Молькеевская ош | B9: 9 | C9: 1 | D9: 4 | E9: 4
A10: Хозесановская сош | B10: 15 | C10: 3 | D10: 6 | E10: 5 | G10: 1
A11: Большеподберезинская сош | B11: 15 | C11: 6 | D11: 5 | E11: 2 | G11: 2
A12: Надеждинская сош
A13: Ульянковская ош | B13: 7 | C13: 3 | D13: 3 | E13: 1
A14: Старочечкабская ош | B14: 10 | C14: 3 | D14: 3 | E14: 1 | G14: 3
A15: Берлибашская ош | B15: 8 | C15: 2 | D15: 6
A16: Кушманская ош | B16: 14 | C16: 12 | D16: 1 | E16: 0 | G16: 1
A17: Муралинская ош | B17: 5 | C17: 2 | D17: 2 | E17: 1 | F17: 0
A18: Федоровская сош | B18: 12 | C18: 2 | D18: 5 | E18: 4 | G18: 1
A19: Бурундуковская ош | B19: 9 | C19: 3 | D19: 3 | E19: 3
A20: Маломеминская ош | B20: 8 | E20: 8
A21: Большерусаковская сош
A22: Кулангинская ош | B22: 16 | C22: 5 | D22: 9 | E22: 1 | G22: 1
B23: =SUM(B7:B22) -> 156 | C23: 42 | D23: 50 | E23: 55 | F23: 0 | G23: 9

Sheet Прыжок с места
D1: Информация о сдаче нормативов осенней (зимней, весенней) сессии в _________муниципальном районе
G2: Прыжок в длину с места
A3: Наименование норматива | B3: Количество обучающихся основной группы по физической культуре, приступивших к сдаче норматива | C3: Количество обучающихся основной группы по физической культуре, справившихся с выполнением нормативов в полном объеме | F3: Количество обучающихся основной группы по физической культуре, справившихся с выполнением нормативов частично | G3: Количество обучающихся основной группы по физической культуре, не справившихся с выполнением нормативов частично
C4: Бронзовый | D4: Серебряный | E4: Золотой
C5: уровень | D5: уровень | E5: уровень
A6: Большекайбицкая сош | B6: 165 | C6: 25 | D6: 85 | E6: 30 | G6: 25
A7: Чутеевская сош | B7: 124 | C7: 25 | D7: 30 | E7: 67 | F7: 0 | G7: 2
A8: Старотябердинская сош | B8: 95 | C8: 12 | D8: 27 | E8: 30 | G8: 26
A9: Молькеевская ош | B9: 63 | C9: 5 | D9: 30 | E9: 26 | G9: 2
A10: Хозесановская сош | B10: 51 | C10: 5 | D10: 7 | E10: 1 | G10: 38
A11: Большеподберезинская сош | B11: 104 | C11: 40 | D11: 35 | E11: 23 | F11: 0 | G11: 6
A12: Надеждинская сош | B12: 20 | C12: 4 | D12: 11 | E12: 5
A13: Ульянковская ош | B13: 22 | C13: 9 | D13: 5 | E13: 3 | G13: 5
A14: Старочечкабская ош | B14: 52 | C14: 21 | D14: 18 | E14: 7 | G14: 6
A15: Берлибашская ош | B15: 40 | C15: 12 | D15: 15 | E15: 7 | G15: 6
A16: Кушманская ош | B16: 48 | C16: 29 | D16: 18 | E16: 1
A17: Муралинская ош | B17: 12 | C17: 3 | D17: 3 | E17: 2 | F17: 0 | G17: 4
A18: Федоровская сош | B18: 145 | C18: 24 | D18: 46 | E18: 64 | G18: 11
A19: Бурундуковская ош | B19: 24 | C19: 4 | D19: 8 | E19: 12
A20: Маломеминская ош | B20: 53 | C20: 15 | D20: 12 | E20: 9 | G20: 17
A21: Большерусаковская сош | B21: 51 | C21: 21 | D21: 20 | E21: 6 | G21: 4
A22: Кулангинская ош | B22: 55 | C22: 15 | D22: 25 | E22: 13 | G22: 2
B23: =SUM(B6:B22) -> 1124 | C23: 269 | D23: 395 | E23: 306 | F23: 0 | G23: 154

Sheet Прыжок в длину с разбега
D1: Информация о сдаче нормативов осенней (зимней, весенней) сессии в _________муниципальном районе
G2: Прыжок в длину с разбега
A3: Наименование норматива | B3: Количество обучающихся основной группы по физической культуре, приступивших к сдаче норматива | C3: Количество обучающихся основной группы по физической культуре, справившихся с выполнением нормативов в полном объеме | F3: Количество обучающихся основной группы по физической культуре, справившихся с выполнением нормативов частично | G3: Количество обучающихся основной группы по физической культуре, не справившихся с выполнением нормативов частично
C4: Бронзовый | D4: Серебряный | E4: Золотой
C5: уровень | D5: уровень | E5: уровень
A6: Большекайбицкая сош
A7: Чутеевская сош | B7: 115 | C7: 20 | D7: 30 | E7: 35 | F7: 0 | G7: 30
A8: Старотябердинская сош | B8: 76 | C8: 8 | D8: 14 | E8: 7 | G8: 47
A9: Молькеевская ош | B9: 54 | C9: 11 | D9: 20 | E9: 9 | G9: 14
A10: Хозесановская сош | B10: 51 | C10: 4 | D10: 6 | E10: 2 | G10: 39
A11: Большеподберезинская сош | B11: 88 | C11: 34 | D11: 26 | E11: 20 | G11: 8
A12: Надеждинская сош
A13: Ульянковская ош | B13: 22 | C13: 10 | D13: 6 | E13: 0 | G13: 6
A14: Старочечкабская ош | B14: 52 | C14: 19 | D14: 19 | E14: 5 | G14: 9
A15: Берлибашская ош
A16: Кушманская ош | B16: 48 | C16: 27 | D16: 17 | E16: 3 | G16: 1
A17: Муралинская ош | B17: 16 | C17: 4 | D17: 2 | E17: 2 | F17: 0 | G17: 8
A18: Федоровская сош | B18: 133 | C18: 54 | D18: 43 | E18: 25 | G18: 11
A19: Бурундуковская ош | B19: 24 | C19: 4 | D19: 8 | E19: 12
A20: Маломеминская ош | B20: 45 | C20: 17 | D20: 9 | E20: 7 | G20: 12
A21: Большерусаковская сош | B21: 51 | C21: 24 | D21: 19 | E21: 8
A22: Кулангинская ош | B22: 39 | C22: 8 | D22: 15 | E22: 7 | G22: 9
B23: =SUM(B7:B22) -> 814 | C23: 244 | D23: 234 | E23: 142 | F23: 0 | G23: 194

Sheet Лист3
C1: Информация о мероприятиях по продвижению ВФСК в общеобразовательных организациях
C2: _________ муниципального района
A4: Количество школ, в которых проведены мероприятия | B4: Перечень основных мероприятий | C4: Количество обучающихся, принявших участие в мероприятиях
A5: (в течение месяца)
A6: Большекайбицкая сош
A7: Чутеевская сош
A8: Старотябердинская сош
A9: Молькеевская ош
A10: Хозесановская сош
A11: Большеподберезинская сош
A12: Надеждинская сош
A13: Ульянковская ош
A14: Старочечкабская ош
A15: Берлибашская ош
A16: Кушманская ош
A17: Муралинская ош
A18: Федоровская сош
A19: Бурундуковская ош
A20: Маломеминская ош
A21: Большерусаковская сош
A22: Кулангинская ош
